[Event "Early-Titled-Tuesday-Blitz-February-27-2024"]
[Site "Chess.com"]
[Date "2024.02.27"]
[Round "7"]
[White "1mbl4"]
[Black "Kobalia"]
[Result "1-0"]
[WhiteElo "2621"]
[BlackElo "2790"]
[TimeControl "180+1"]
[EndTime "9:16:43 PST"]
[Termination "1mbl4 won by resignation"]

1. e4 {[%clk 0:03:00.9]} 1... g6 {[%clk 0:02:59]} 2. d4 {[%clk 0:03:00.7]} 2...
Bg7 {[%clk 0:02:59.4]} 3. Nc3 {[%clk 0:03:00.9]} 3... d6 {[%clk 0:02:59.5]} 4.
f4 {[%clk 0:03:01]} 4... Nd7 {[%clk 0:02:59.7]} 5. Nf3 {[%clk 0:03:00.9]} 5...
c5 {[%clk 0:03:00.1]} 6. d5 {[%clk 0:02:53.7]} 6... Ngf6 {[%clk 0:02:59.3]} 7.
Be2 {[%clk 0:02:48.4]} 7... O-O {[%clk 0:02:44.1]} 8. O-O {[%clk 0:02:48]} 8...
a6 {[%clk 0:02:44.5]} 9. a4 {[%clk 0:02:47.9]} 9... Rb8 {[%clk 0:02:44.8]} 10.
Re1 {[%clk 0:02:45.3]} 10... Ne8 {[%clk 0:02:44.4]} 11. Be3 {[%clk 0:02:39.1]}
11... Nc7 {[%clk 0:02:44.1]} 12. a5 {[%clk 0:02:35.9]} 12... b5 {[%clk
0:02:43.9]} 13. axb6 {[%clk 0:02:36.1]} 13... Rxb6 {[%clk 0:02:43.8]} 14. Na4
{[%clk 0:02:35.6]} 14... Rb8 {[%clk 0:02:43]} 15. c3 {[%clk 0:02:34.8]} 15...
Nb5 {[%clk 0:02:40.8]} 16. Bf2 {[%clk 0:02:27.8]} 16... Nf6 {[%clk 0:02:37.2]}
17. e5 {[%clk 0:02:21.8]} 17... dxe5 {[%clk 0:02:29.6]} 18. Nxe5 {[%clk
0:02:16.6]} 18... Ne4 {[%clk 0:01:58.6]} 19. Nc6 {[%clk 0:02:00.5]} 19... Qc7
{[%clk 0:01:57.4]} 20. Nxb8 {[%clk 0:01:54.6]} 20... Nxf2 {[%clk 0:01:56.8]} 21.
Kxf2 {[%clk 0:01:54]} 21... Qxf4+ {[%clk 0:01:55.7]} 22. Bf3 {[%clk 0:01:53]}
22... Qxb8 {[%clk 0:01:55]} 23. g3 {[%clk 0:01:39.5]} 23... Be5 {[%clk 0:01:50]}
24. Nxc5 {[%clk 0:01:34.4]} 24... Bxc3 {[%clk 0:01:34.8]} 25. bxc3 {[%clk
0:01:27.5]} 25... Qb6 {[%clk 0:01:34.7]} 26. Qe2 {[%clk 0:01:18.1]} 26... Qxc5+
{[%clk 0:01:34.4]} 27. Qe3 {[%clk 0:01:18.5]} 27... Qc7 {[%clk 0:01:28]} 28.
Qxe7 {[%clk 0:01:16.9]} 28... Qxc3 {[%clk 0:01:26.9]} 29. Rad1 {[%clk
0:01:13.3]} 29... Bf5 {[%clk 0:01:21.9]} 30. d6 {[%clk 0:01:07.7]} 30... Bc2
{[%clk 0:01:00.9]} 31. d7 {[%clk 0:01:03.7]} 31... Bxd1 {[%clk 0:01:00.9]} 32.
Qxf8+ {[%clk 0:01:01.6]} 32... Kxf8 {[%clk 0:00:58.8]} 33. d8=Q+ {[%clk
0:01:01.9]} 33... Kg7 {[%clk 0:00:59.4]} 34. Qxd1 {[%clk 0:01:00.9]} 34... Nd4
{[%clk 0:00:58.9]} 35. Re3 {[%clk 0:01:00.2]} 35... Qb2+ {[%clk 0:00:57.4]} 36.
Kg1 {[%clk 0:01:00.5]} 36... Qb6 {[%clk 0:00:55]} 37. Kh1 {[%clk 0:00:55.2]}
37... a5 {[%clk 0:00:54.5]} 38. Qa1 {[%clk 0:00:51.9]} 38... Kh6 {[%clk
0:00:48.8]} 39. Rd3 {[%clk 0:00:48.8]} 39... Nf5 {[%clk 0:00:47.6]} 40. Qc1+
{[%clk 0:00:45.4]} 40... Kg7 {[%clk 0:00:46.8]} 41. Rd7 {[%clk 0:00:43.4]} 41...
Qe6 {[%clk 0:00:42.1]} 42. Rb7 {[%clk 0:00:39.1]} 42... a4 {[%clk 0:00:39]} 43.
Qd1 {[%clk 0:00:28.8]} 43... a3 {[%clk 0:00:37]} 44. Bd5 {[%clk 0:00:28.6]}
44... Qe3 {[%clk 0:00:31.9]} 45. Rxf7+ {[%clk 0:00:28.5]} 45... Kh6 {[%clk
0:00:32.3]} 46. Rc7 {[%clk 0:00:28.1]} 46... Qf2 {[%clk 0:00:23.9]} 47. Qc1+
{[%clk 0:00:24.1]} 1-0

[Event "Early-Titled-Tuesday-Blitz-February-27-2024"]
[Site "Chess.com"]
[Date "2024.02.27"]
[Round "7"]
[White "Kezin_Roman"]
[Black "Andreikka"]
[Result "0-1"]
[WhiteElo "2791"]
[BlackElo "2960"]
[TimeControl "180+1"]
[EndTime "9:16:44 PST"]
[Termination "Andreikka won on time"]

1. d4 {[%clk 0:02:59.9]} 1... Nf6 {[%clk 0:02:59.1]} 2. c4 {[%clk 0:03:00.3]}
2... e6 {[%clk 0:02:59.3]} 3. g3 {[%clk 0:02:59.4]} 3... Bb4+ {[%clk 0:02:54.5]}
4. Bd2 {[%clk 0:02:58.8]} 4... Be7 {[%clk 0:02:49.9]} 5. Nf3 {[%clk 0:02:58.2]}
5... d5 {[%clk 0:02:50.2]} 6. Bg2 {[%clk 0:02:57.8]} 6... O-O {[%clk 0:02:50.8]}
7. O-O {[%clk 0:02:58.1]} 7... Nbd7 {[%clk 0:02:51.6]} 8. Qc2 {[%clk 0:02:56.1]}
8... c6 {[%clk 0:02:52.2]} 9. Bf4 {[%clk 0:02:55.1]} 9... b6 {[%clk 0:02:46.2]}
10. Nbd2 {[%clk 0:02:49.8]} 10... Nh5 {[%clk 0:02:42]} 11. e3 {[%clk 0:02:45.8]}
11... Bb7 {[%clk 0:02:40]} 12. cxd5 {[%clk 0:02:42.9]} 12... exd5 {[%clk
0:02:37.1]} 13. h4 {[%clk 0:02:41.2]} 13... h6 {[%clk 0:02:34]} 14. Rac1 {[%clk
0:02:38.6]} 14... Re8 {[%clk 0:02:31.7]} 15. Rfd1 {[%clk 0:02:12.2]} 15... Rc8
{[%clk 0:02:03.5]} 16. Bh3 {[%clk 0:02:08]} 16... Nxf4 {[%clk 0:02:02.2]} 17.
exf4 {[%clk 0:02:08.9]} 17... Rc7 {[%clk 0:02:03]} 18. Nf1 {[%clk 0:01:52.9]}
18... Nf6 {[%clk 0:01:57.1]} 19. Ne5 {[%clk 0:01:52.7]} 19... c5 {[%clk
0:01:54.4]} 20. Ne3 {[%clk 0:01:50.4]} 20... Bd6 {[%clk 0:01:52.2]} 21. Qa4
{[%clk 0:01:16.8]} 21... cxd4 {[%clk 0:01:47.9]} 22. Rxc7 {[%clk 0:01:15.8]}
22... Bxc7 {[%clk 0:01:15.4]} 23. Qxd4 {[%clk 0:01:13.6]} 23... Qe7 {[%clk
0:01:15.9]} 24. Nf5 {[%clk 0:01:11.7]} 24... Qc5 {[%clk 0:01:12.6]} 25. Nd7
{[%clk 0:00:34.4]} 25... Qxd4 {[%clk 0:01:00.1]} 26. Nxd4 {[%clk 0:00:35.3]}
26... Bd8 {[%clk 0:00:36.6]} 27. Rc1 {[%clk 0:00:22.8]} 27... Nxd7 {[%clk
0:00:29.6]} 28. Bxd7 {[%clk 0:00:23.7]} 28... Re4 {[%clk 0:00:30]} 29. Nb5
{[%clk 0:00:13.2]} 29... d4 {[%clk 0:00:18.1]} 30. Bc6 {[%clk 0:00:06]} 30...
Bxc6 {[%clk 0:00:14.1]} 31. Rxc6 {[%clk 0:00:06.9]} 31... Be7 {[%clk 0:00:14.7]}
32. Rc8+ {[%clk 0:00:02.5]} 32... Kh7 {[%clk 0:00:14.4]} 33. Re8 {[%clk
0:00:02.6]} 33... d3 {[%clk 0:00:12.7]} 34. Nc3 {[%clk 0:00:01.7]} 34... Re1+
{[%clk 0:00:13]} 35. Kg2 {[%clk 0:00:02.6]} 35... d2 {[%clk 0:00:13.8]} 36. Kf3
{[%clk 0:00:01.3]} 36... Bf6 {[%clk 0:00:14.5]} 0-1

[Event "Early-Titled-Tuesday-Blitz-February-27-2024"]
[Site "Chess.com"]
[Date "2024.02.27"]
[Round "7"]
[White "wonderfultime"]
[Black "SantoBlue"]
[Result "1-0"]
[WhiteElo "3104"]
[BlackElo "2972"]
[TimeControl "180+1"]
[EndTime "9:16:46 PST"]
[Termination "wonderfultime won by resignation"]

1. d4 {[%clk 0:03:00.9]} 1... d5 {[%clk 0:03:00.2]} 2. Nf3 {[%clk 0:03:01.1]}
2... Nf6 {[%clk 0:03:00.2]} 3. Bf4 {[%clk 0:03:01.5]} 3... e6 {[%clk 0:02:57.4]}
4. e3 {[%clk 0:03:01.8]} 4... Bd6 {[%clk 0:02:56.1]} 5. Nbd2 {[%clk 0:03:02]}
5... Nc6 {[%clk 0:02:54.5]} 6. Bb5 {[%clk 0:02:42]} 6... O-O {[%clk 0:02:51.8]}
7. O-O {[%clk 0:02:41.9]} 7... Nxd4 {[%clk 0:02:37]} 8. Nxd4 {[%clk 0:02:36.2]}
8... e5 {[%clk 0:02:37.2]} 9. Bg5 {[%clk 0:02:13.7]} 9... exd4 {[%clk
0:02:31.8]} 10. exd4 {[%clk 0:02:14.6]} 10... c6 {[%clk 0:02:18.9]} 11. Bd3
{[%clk 0:02:14]} 11... h6 {[%clk 0:02:19.4]} 12. Bh4 {[%clk 0:02:13]} 12... Re8
{[%clk 0:02:11]} 13. c3 {[%clk 0:01:56.5]} 13... g6 {[%clk 0:02:02]} 14. Nf3
{[%clk 0:01:46.4]} 14... Kg7 {[%clk 0:01:52]} 15. Bg3 {[%clk 0:01:15.7]} 15...
Bg4 {[%clk 0:01:40.7]} 16. h3 {[%clk 0:01:03.1]} 16... Bxf3 {[%clk 0:01:30.7]}
17. Qxf3 {[%clk 0:01:04]} 17... Bxg3 {[%clk 0:01:26.5]} 18. fxg3 {[%clk
0:01:04.1]} 18... Qd6 {[%clk 0:01:18.8]} 19. Rf2 {[%clk 0:01:02.5]} 19... Re7
{[%clk 0:01:16.9]} 20. Raf1 {[%clk 0:01:02.9]} 20... Nd7 {[%clk 0:01:08.5]} 21.
g4 {[%clk 0:00:56.8]} 21... Rae8 {[%clk 0:01:08]} 22. h4 {[%clk 0:00:56.5]}
22... Qe6 {[%clk 0:00:54.9]} 23. Qf4 {[%clk 0:00:49.6]} 23... f6 {[%clk
0:00:42.4]} 24. h5 {[%clk 0:00:38.7]} 24... g5 {[%clk 0:00:42.9]} 25. Qf3 {[%clk
0:00:39.1]} 25... Qg8 {[%clk 0:00:12.2]} 26. Qf5 {[%clk 0:00:36]} 26... Kh8
{[%clk 0:00:12.7]} 27. b3 {[%clk 0:00:30.4]} 27... Qg7 {[%clk 0:00:12.5]} 28. c4
{[%clk 0:00:30.6]} 28... dxc4 {[%clk 0:00:13.4]} 29. bxc4 {[%clk 0:00:30.8]}
29... Kg8 {[%clk 0:00:11.5]} 30. c5 {[%clk 0:00:29.3]} 30... Kh8 {[%clk
0:00:10.5]} 31. a4 {[%clk 0:00:27.8]} 31... a5 {[%clk 0:00:09]} 32. Rb2 {[%clk
0:00:25.8]} 32... Nf8 {[%clk 0:00:05.7]} 33. Qxf6 {[%clk 0:00:23.1]} 33... Qxf6
{[%clk 0:00:06]} 34. Rxf6 {[%clk 0:00:24]} 34... Kg7 {[%clk 0:00:06.6]} 35. Rf1
{[%clk 0:00:22.5]} 35... Rd8 {[%clk 0:00:06.4]} 36. Rbf2 {[%clk 0:00:09.4]}
36... Rxd4 {[%clk 0:00:04.3]} 37. Bb1 {[%clk 0:00:10.1]} 37... Ne6 {[%clk
0:00:04.1]} 38. g3 {[%clk 0:00:08.9]} 38... Rd6 {[%clk 0:00:03]} 39. cxd6 {[%clk
0:00:08.9]} 1-0

[Event "Early-Titled-Tuesday-Blitz-February-27-2024"]
[Site "Chess.com"]
[Date "2024.02.27"]
[Round "7"]
[White "Goryachkina"]
[Black "mishanick"]
[Result "0-1"]
[WhiteElo "2691"]
[BlackElo "3069"]
[TimeControl "180+1"]
[EndTime "9:16:46 PST"]
[Termination "mishanick won on time"]

1. e4 {[%clk 0:02:59.6]} 1... c5 {[%clk 0:02:58.8]} 2. Nf3 {[%clk 0:02:59.5]}
2... e6 {[%clk 0:02:59.2]} 3. d4 {[%clk 0:02:55]} 3... cxd4 {[%clk 0:03:00.1]}
4. Nxd4 {[%clk 0:02:55.5]} 4... Nc6 {[%clk 0:03:00.7]} 5. Nc3 {[%clk 0:02:54.9]}
5... Nf6 {[%clk 0:03:01.2]} 6. Ndb5 {[%clk 0:02:52.2]} 6... Bc5 {[%clk
0:02:49.5]} 7. Nd6+ {[%clk 0:02:43.5]} 7... Ke7 {[%clk 0:02:49.5]} 8. Bf4 {[%clk
0:02:43.3]} 8... e5 {[%clk 0:02:49.8]} 9. Nf5+ {[%clk 0:02:43.2]} 9... Kf8
{[%clk 0:02:50.1]} 10. Bg5 {[%clk 0:02:43.4]} 10... d6 {[%clk 0:02:50.4]} 11.
Bd3 {[%clk 0:02:26.2]} 11... h6 {[%clk 0:02:43.1]} 12. Bxf6 {[%clk 0:02:21.9]}
12... Qxf6 {[%clk 0:02:44]} 13. Nd5 {[%clk 0:02:18.7]} 13... Qd8 {[%clk
0:02:39.6]} 14. O-O {[%clk 0:02:17.9]} 14... Be6 {[%clk 0:02:39.1]} 15. Nfe3
{[%clk 0:02:08.9]} 15... g6 {[%clk 0:02:35.8]} 16. c3 {[%clk 0:02:08.7]} 16...
a6 {[%clk 0:02:33.4]} 17. a4 {[%clk 0:02:06.7]} 17... Kg7 {[%clk 0:02:33]} 18.
b4 {[%clk 0:01:56.4]} 18... Ba7 {[%clk 0:02:33.3]} 19. Qe2 {[%clk 0:01:49.8]}
19... Rc8 {[%clk 0:02:29.1]} 20. Bc4 {[%clk 0:01:29.3]} 20... h5 {[%clk
0:02:25.7]} 21. Rfd1 {[%clk 0:01:24.9]} 21... h4 {[%clk 0:02:25.2]} 22. h3
{[%clk 0:01:21.2]} 22... Qg5 {[%clk 0:02:24.9]} 23. Kh1 {[%clk 0:01:16.7]} 23...
Rhd8 {[%clk 0:02:18.5]} 24. b5 {[%clk 0:00:58]} 24... Na5 {[%clk 0:02:17.7]} 25.
b6 {[%clk 0:00:50.9]} 25... Nxc4 {[%clk 0:02:11.8]} 26. Nxc4 {[%clk 0:00:32.2]}
26... Bb8 {[%clk 0:02:07.1]} 27. Na5 {[%clk 0:00:31.2]} 27... Rd7 {[%clk
0:01:46.2]} 28. Nxb7 {[%clk 0:00:20]} 28... Rxb7 {[%clk 0:01:45.8]} 29. Qxa6
{[%clk 0:00:19.6]} 29... Bxd5 {[%clk 0:01:43.2]} 30. Rxd5 {[%clk 0:00:19.1]}
30... Qe7 {[%clk 0:01:43.2]} 31. a5 {[%clk 0:00:18.6]} 31... Rxc3 {[%clk
0:01:40.8]} 32. Qb5 {[%clk 0:00:18.1]} 32... Qd8 {[%clk 0:01:28.8]} 33. Rad1
{[%clk 0:00:17]} 33... Rc2 {[%clk 0:01:20]} 34. Rxe5 {[%clk 0:00:10.6]} 34...
Rxf2 {[%clk 0:01:17]} 35. Re8 {[%clk 0:00:10.7]} 35... Qf6 {[%clk 0:01:13.3]}
36. a6 {[%clk 0:00:10.2]} 36... d5 {[%clk 0:01:10.5]} 37. axb7 {[%clk
0:00:07.4]} 37... Rd2 {[%clk 0:00:15.3]} 38. Rxd2 {[%clk 0:00:06.6]} 38... Qa1+
{[%clk 0:00:15.2]} 0-1

[Event "Early-Titled-Tuesday-Blitz-February-27-2024"]
[Site "Chess.com"]
[Date "2024.02.27"]
[Round "7"]
[White "N4700000"]
[Black "NikitaShnadrygin"]
[Result "1-0"]
[WhiteElo "2465"]
[BlackElo "2606"]
[TimeControl "180+1"]
[EndTime "9:16:46 PST"]
[Termination "N4700000 won by resignation"]

1. e4 {[%clk 0:03:00.9]} 1... c5 {[%clk 0:02:58.4]} 2. a3 {[%clk 0:03:00.3]}
2... e5 {[%clk 0:02:38.9]} 3. Bc4 {[%clk 0:02:57.3]} 3... Nc6 {[%clk 0:02:37.3]}
4. Nc3 {[%clk 0:02:55.3]} 4... d6 {[%clk 0:02:34]} 5. d3 {[%clk 0:02:53.8]} 5...
Be6 {[%clk 0:02:31.6]} 6. Bxe6 {[%clk 0:02:40.8]} 6... fxe6 {[%clk 0:02:29.8]}
7. f4 {[%clk 0:02:40.7]} 7... exf4 {[%clk 0:02:17.2]} 8. Bxf4 {[%clk 0:02:41.6]}
8... Nf6 {[%clk 0:02:02.3]} 9. Nf3 {[%clk 0:02:41.6]} 9... Be7 {[%clk
0:01:56.1]} 10. e5 {[%clk 0:02:12]} 10... dxe5 {[%clk 0:01:53.4]} 11. Nxe5
{[%clk 0:02:08.4]} 11... Nxe5 {[%clk 0:01:41.5]} 12. Bxe5 {[%clk 0:02:07.3]}
12... O-O {[%clk 0:01:42.2]} 13. O-O {[%clk 0:02:02.5]} 13... Qb6 {[%clk
0:01:42.2]} 14. Kh1 {[%clk 0:01:50.3]} 14... Rad8 {[%clk 0:01:38.6]} 15. Qe2
{[%clk 0:01:47.7]} 15... Qc6 {[%clk 0:01:25.1]} 16. Rae1 {[%clk 0:01:41]} 16...
b5 {[%clk 0:01:22.6]} 17. h3 {[%clk 0:01:17.5]} 17... b4 {[%clk 0:01:17.7]} 18.
Nd1 {[%clk 0:01:09]} 18... Rfe8 {[%clk 0:00:43.3]} 19. Ne3 {[%clk 0:01:00.4]}
19... Kh8 {[%clk 0:00:20.4]} 20. Ng4 {[%clk 0:00:57.4]} 20... Rf8 {[%clk
0:00:04.4]} 21. Bxf6 {[%clk 0:00:49.6]} 21... Bxf6 {[%clk 0:00:04.2]} 22. Nxf6
{[%clk 0:00:48.7]} 22... Rxf6 {[%clk 0:00:03.3]} 23. Rxf6 {[%clk 0:00:47.8]}
23... gxf6 {[%clk 0:00:04.2]} 24. Qxe6 {[%clk 0:00:47.6]} 24... Qxe6 {[%clk
0:00:05.1]} 25. Rxe6 {[%clk 0:00:47.5]} 25... b3 {[%clk 0:00:05.9]} 26. cxb3
{[%clk 0:00:42]} 26... Rxd3 {[%clk 0:00:05.9]} 27. Rxf6 {[%clk 0:00:35.7]} 27...
Rxb3 {[%clk 0:00:06.2]} 28. Rf2 {[%clk 0:00:35.5]} 28... c4 {[%clk 0:00:06.4]}
29. Rc2 {[%clk 0:00:34.6]} 29... c3 {[%clk 0:00:06.3]} 30. Rxc3 {[%clk
0:00:32.8]} 30... Rxb2 {[%clk 0:00:06.9]} 31. Rc8+ {[%clk 0:00:32.4]} 31... Kg7
{[%clk 0:00:06.6]} 32. Rc7+ {[%clk 0:00:33.1]} 32... Kg6 {[%clk 0:00:07.5]} 33.
Rxa7 {[%clk 0:00:33.4]} 33... h5 {[%clk 0:00:08.4]} 34. Ra5 {[%clk 0:00:31]}
34... Ra2 {[%clk 0:00:08]} 35. Kh2 {[%clk 0:00:29.2]} 35... h4 {[%clk
0:00:08.6]} 36. Kg1 {[%clk 0:00:25.6]} 36... Kh6 {[%clk 0:00:09.2]} 37. Kf1
{[%clk 0:00:25.2]} 37... Kg6 {[%clk 0:00:09.8]} 38. Ra4 {[%clk 0:00:21]} 38...
Kh5 {[%clk 0:00:09.7]} 39. Kg1 {[%clk 0:00:20.3]} 39... Rb2 {[%clk 0:00:08.9]}
40. Rb4 {[%clk 0:00:19.4]} 40... Ra2 {[%clk 0:00:09.5]} 41. a4 {[%clk
0:00:19.6]} 41... Kg5 {[%clk 0:00:09.2]} 42. Rg4+ {[%clk 0:00:19.9]} 42... Kh5
{[%clk 0:00:09.7]} 43. Kf1 {[%clk 0:00:19.8]} 43... Ra3 {[%clk 0:00:09]} 44. Ke2
{[%clk 0:00:19.6]} 44... Ra2+ {[%clk 0:00:09.6]} 45. Kd3 {[%clk 0:00:19.6]} 1-0

[Event "Early-Titled-Tuesday-Blitz-February-27-2024"]
[Site "Chess.com"]
[Date "2024.02.27"]
[Round "7"]
[White "laziestwin"]
[Black "joshdaruca"]
[Result "1-0"]
[WhiteElo "2593"]
[BlackElo "2761"]
[TimeControl "180+1"]
[EndTime "9:16:47 PST"]
[Termination "laziestwin won by resignation"]

1. d4 {[%clk 0:03:00.9]} 1... d5 {[%clk 0:02:59.7]} 2. c4 {[%clk 0:03:00.5]}
2... e6 {[%clk 0:03:00.2]} 3. Nc3 {[%clk 0:02:50]} 3... Nf6 {[%clk 0:02:59.8]}
4. cxd5 {[%clk 0:02:44.1]} 4... exd5 {[%clk 0:03:00.7]} 5. Bg5 {[%clk
0:02:43.8]} 5... c6 {[%clk 0:03:00.3]} 6. e3 {[%clk 0:02:42.8]} 6... Be6 {[%clk
0:02:58.9]} 7. Bd3 {[%clk 0:02:40.8]} 7... Bd6 {[%clk 0:02:45]} 8. Nge2 {[%clk
0:02:38.1]} 8... h6 {[%clk 0:02:44.4]} 9. Bh4 {[%clk 0:02:37]} 9... Nbd7 {[%clk
0:02:44.4]} 10. f3 {[%clk 0:02:35.7]} 10... c5 {[%clk 0:02:37.5]} 11. O-O {[%clk
0:02:34.6]} 11... a6 {[%clk 0:02:34.5]} 12. Qd2 {[%clk 0:02:14.5]} 12... Qb8
{[%clk 0:02:15.6]} 13. h3 {[%clk 0:02:07.8]} 13... O-O {[%clk 0:01:44.8]} 14.
Rad1 {[%clk 0:01:58.3]} 14... Re8 {[%clk 0:01:44.7]} 15. Bb1 {[%clk 0:01:58]}
15... b5 {[%clk 0:01:44.4]} 16. e4 {[%clk 0:01:22.7]} 16... cxd4 {[%clk
0:01:18.5]} 17. Nxd4 {[%clk 0:01:23.6]} 17... Bc5 {[%clk 0:00:58.3]} 18. Kh1
{[%clk 0:01:17.2]} 18... b4 {[%clk 0:00:56.1]} 19. Nxd5 {[%clk 0:01:07.7]} 19...
Bxd5 {[%clk 0:00:54]} 20. exd5 {[%clk 0:01:07.9]} 20... Nxd5 {[%clk 0:00:47.1]}
21. Nc6 {[%clk 0:01:07.9]} 21... Qb5 {[%clk 0:00:05.6]} 22. Qxd5 {[%clk
0:01:05.7]} 22... Nb6 {[%clk 0:00:05.8]} 23. Qd3 {[%clk 0:01:03.5]} 23... Qxd3
{[%clk 0:00:05.2]} 24. Bxd3 {[%clk 0:01:04.4]} 24... a5 {[%clk 0:00:03.9]} 25.
Rfe1 {[%clk 0:00:59.4]} 25... Na4 {[%clk 0:00:04.3]} 26. Rxe8+ {[%clk
0:00:35.4]} 26... Rxe8 {[%clk 0:00:05.2]} 27. Rd2 {[%clk 0:00:35.4]} 27... g5
{[%clk 0:00:01.7]} 28. Bg3 {[%clk 0:00:35.7]} 28... Be3 {[%clk 0:00:01.4]} 29.
Re2 {[%clk 0:00:35.5]} 29... Re6 {[%clk 0:00:02]} 30. Nxa5 {[%clk 0:00:34.9]}
30... Bd4 {[%clk 0:00:02.6]} 31. Rxe6 {[%clk 0:00:34.4]} 31... fxe6 {[%clk
0:00:03.5]} 32. b3 {[%clk 0:00:32.8]} 32... Nc3 {[%clk 0:00:03.3]} 33. Nc6
{[%clk 0:00:32.1]} 33... Bc5 {[%clk 0:00:04]} 34. Be1 {[%clk 0:00:26.4]} 34...
Nxa2 {[%clk 0:00:04.5]} 35. Bd2 {[%clk 0:00:24.6]} 35... Kf7 {[%clk 0:00:04.7]}
36. g3 {[%clk 0:00:23.1]} 36... Ke8 {[%clk 0:00:05.4]} 37. Kg2 {[%clk
0:00:22.5]} 37... Kd7 {[%clk 0:00:05.7]} 38. Ne5+ {[%clk 0:00:23]} 38... Ke7
{[%clk 0:00:06.2]} 39. h4 {[%clk 0:00:22.8]} 39... Kf6 {[%clk 0:00:06.6]} 40.
Ng4+ {[%clk 0:00:22.4]} 40... Kg7 {[%clk 0:00:07]} 41. hxg5 {[%clk 0:00:22.4]}
41... hxg5 {[%clk 0:00:07.9]} 42. Bxg5 {[%clk 0:00:20.2]} 42... Nc3 {[%clk
0:00:08.7]} 43. Bf6+ {[%clk 0:00:20.6]} 43... Kf7 {[%clk 0:00:08.7]} 44. Bxc3
{[%clk 0:00:21.5]} 44... bxc3 {[%clk 0:00:09.1]} 45. Bc2 {[%clk 0:00:22.4]}
45... e5 {[%clk 0:00:09]} 46. Nxe5+ {[%clk 0:00:22.3]} 46... Ke6 {[%clk
0:00:09.9]} 47. f4 {[%clk 0:00:22.9]} 47... Bd6 {[%clk 0:00:10.2]} 48. Kf3
{[%clk 0:00:23.1]} 48... Kd5 {[%clk 0:00:11.1]} 49. g4 {[%clk 0:00:23]} 49...
Kd4 {[%clk 0:00:12]} 50. g5 {[%clk 0:00:22.8]} 50... Bxe5 {[%clk 0:00:12.9]} 51.
fxe5 {[%clk 0:00:23]} 51... Kxe5 {[%clk 0:00:13.8]} 52. Ke3 {[%clk 0:00:23.2]}
1-0

[Event "Early-Titled-Tuesday-Blitz-February-27-2024"]
[Site "Chess.com"]
[Date "2024.02.27"]
[Round "7"]
[White "NaciSAN"]
[Black "dennisodessa"]
[Result "0-1"]
[WhiteElo "2130"]
[BlackElo "2588"]
[TimeControl "180+1"]
[EndTime "9:16:47 PST"]
[Termination "dennisodessa won on time"]

1. e4 {[%clk 0:03:00.9]} 1... e6 {[%clk 0:02:58.9]} 2. d4 {[%clk 0:02:58.2]}
2... d5 {[%clk 0:02:59.2]} 3. exd5 {[%clk 0:02:56.1]} 3... exd5 {[%clk
0:03:00.1]} 4. Bd3 {[%clk 0:02:55.8]} 4... Nf6 {[%clk 0:02:59.6]} 5. Ne2 {[%clk
0:02:55]} 5... Bd6 {[%clk 0:02:56.8]} 6. Bf4 {[%clk 0:02:51.6]} 6... O-O {[%clk
0:02:53.7]} 7. O-O {[%clk 0:02:50.8]} 7... Bg4 {[%clk 0:02:53.3]} 8. f3 {[%clk
0:02:48.3]} 8... Bh5 {[%clk 0:02:52]} 9. Bxd6 {[%clk 0:02:46.4]} 9... Qxd6
{[%clk 0:02:52.9]} 10. Nbc3 {[%clk 0:02:43.4]} 10... Bg6 {[%clk 0:02:53.8]} 11.
Bxg6 {[%clk 0:02:37.8]} 11... hxg6 {[%clk 0:02:54.7]} 12. Qd2 {[%clk 0:02:32]}
12... c6 {[%clk 0:02:50.6]} 13. Qf4 {[%clk 0:02:29.7]} 13... Qxf4 {[%clk
0:02:49.4]} 14. Nxf4 {[%clk 0:02:30.6]} 14... Nbd7 {[%clk 0:02:49.4]} 15. Rfe1
{[%clk 0:02:29.6]} 15... Rfe8 {[%clk 0:02:49.8]} 16. Kf2 {[%clk 0:02:25.7]}
16... Rxe1 {[%clk 0:02:48]} 17. Rxe1 {[%clk 0:02:26.6]} 17... Re8 {[%clk
0:02:47.8]} 18. Rxe8+ {[%clk 0:02:26.4]} 18... Nxe8 {[%clk 0:02:48.7]} 19. Nd1
{[%clk 0:02:17.8]} 19... g5 {[%clk 0:02:40.8]} 20. Nd3 {[%clk 0:02:16.9]} 20...
f6 {[%clk 0:02:40.7]} 21. a4 {[%clk 0:02:11.5]} 21... Nc7 {[%clk 0:02:17.1]} 22.
b3 {[%clk 0:02:08]} 22... Ne6 {[%clk 0:02:15.5]} 23. c3 {[%clk 0:02:06.9]} 23...
Kf7 {[%clk 0:02:13]} 24. g3 {[%clk 0:02:05.7]} 24... c5 {[%clk 0:02:07.3]} 25.
dxc5 {[%clk 0:01:59.7]} 25... Ndxc5 {[%clk 0:02:08.2]} 26. Nc1 {[%clk 0:01:44]}
26... d4 {[%clk 0:01:52.3]} 27. a5 {[%clk 0:01:06.4]} 27... dxc3 {[%clk
0:01:40.2]} 28. Nxc3 {[%clk 0:01:05]} 28... Nd4 {[%clk 0:01:39.4]} 29. b4 {[%clk
0:01:02.6]} 29... Nce6 {[%clk 0:01:20.9]} 30. Nd3 {[%clk 0:00:59.6]} 30... Nc6
{[%clk 0:01:16.8]} 31. Nb5 {[%clk 0:00:48.9]} 31... Ke7 {[%clk 0:01:13.4]} 32.
Ke3 {[%clk 0:00:36.1]} 32... a6 {[%clk 0:01:10.2]} 33. Nc3 {[%clk 0:00:35.3]}
33... Kd6 {[%clk 0:01:03.8]} 34. Ne4+ {[%clk 0:00:27.4]} 34... Kd5 {[%clk
0:00:56.3]} 35. Nc3+ {[%clk 0:00:26.9]} 35... Kc4 {[%clk 0:00:55.5]} 36. Ne4
{[%clk 0:00:14.9]} 36... Nxb4 {[%clk 0:00:49.6]} 37. Nd6+ {[%clk 0:00:13.3]}
37... Kb3 {[%clk 0:00:49.8]} 38. Nxb7 {[%clk 0:00:09.2]} 38... Nxd3 {[%clk
0:00:43.2]} 39. Kxd3 {[%clk 0:00:09]} 39... Kb4 {[%clk 0:00:41.5]} 40. Ke4
{[%clk 0:00:07.9]} 40... Kb5 {[%clk 0:00:41]} 41. Kf5 {[%clk 0:00:06.8]} 41...
Nd4+ {[%clk 0:00:41.1]} 42. Kg6 {[%clk 0:00:06.5]} 42... Nxf3 {[%clk 0:00:41.4]}
43. Kxg7 {[%clk 0:00:06.2]} 43... Nxh2 {[%clk 0:00:42.1]} 44. Kxf6 {[%clk
0:00:05.9]} 44... Nf1 {[%clk 0:00:42.7]} 45. Kxg5 {[%clk 0:00:04.1]} 45... Nxg3
{[%clk 0:00:43.6]} 46. Kf4 {[%clk 0:00:02.8]} 46... Ne2+ {[%clk 0:00:41.9]} 47.
Ke3 {[%clk 0:00:03.2]} 47... Nc3 {[%clk 0:00:42.4]} 48. Kd2 {[%clk 0:00:03.3]}
48... Nd5 {[%clk 0:00:41.6]} 49. Kc2 {[%clk 0:00:03.2]} 49... Nb4+ {[%clk
0:00:39.4]} 50. Kb3 {[%clk 0:00:03.1]} 50... Nc6 {[%clk 0:00:40.3]} 51. Ka3
{[%clk 0:00:02.3]} 51... Nd4 {[%clk 0:00:40.5]} 52. Kb2 {[%clk 0:00:01.3]} 52...
Kb4 {[%clk 0:00:40.8]} 0-1